bitfinex-derivatives/quotes_BTCF0:USTF0_20250803
["timestamp","ask_amount","ask_price","bid_price","bid_amount"]
[1754216331280,0.2749122,113840.0,113830.0,0.3994978]
[1754216331482,0.2749122,113840.0,113830.0,0.3555712]
[1754216332778,0.2749122,113840.0,113830.0,0.3565712]
[1754216334783,0.2759122,113840.0,113830.0,0.3565712]
[1754216334984,0.2759122,113840.0,113830.0,0.3555712]
[1754216335386,0.2759122,113840.0,113830.0,0.43451684]
[1754216342590,0.2759122,113840.0,113830.0,0.3555712]
[1754216343491,0.2558322,113840.0,113830.0,0.3555712]
[1754216345293,0.2558322,113840.0,113830.0,0.43451684]
[1754216346992,0.2558322,113840.0,113830.0,0.3555712]
[1754216351195,0.2558322,113840.0,113830.0,0.7163712]
[1754216358790,0.2558322,113840.0,113830.0,0.6978512]
[1754216359299,0.2558322,113840.0,113830.0,0.77679684]
[1754216359698,0.2558322,113840.0,113830.0,0.6978512]
[1754216361498,0.2558322,113840.0,113830.0,0.7181712]
[1754216364002,0.2558322,113840.0,113830.0,0.3573712]
[1754216364203,0.2558322,113840.0,113830.0,0.7181712]
[1754216365003,0.2558322,113840.0,113830.0,0.3573712]
[1754216365205,0.2558322,113840.0,113830.0,0.7181712]
[1754216367008,0.2558322,113840.0,113830.0,0.3573712]
[1754216367202,0.2558322,113840.0,113830.0,0.7181712]
[1754216367403,0.2558322,113840.0,113830.0,0.3573712]
[1754216368809,0.2558322,113840.0,113830.0,0.43631684]
[1754216375221,0.2558322,113840.0,113830.0,0.3573712]
[1754216390735,0.2558322,113840.0,113830.0,0.43631684]
[1754216408748,0.2558322,113840.0,113830.0,0.41599684]
[1754216412354,0.2558322,113840.0,113830.0,0.43632684]
[1754216414654,0.6166322,113840.0,113830.0,0.43632684]
[1754216415254,0.2558322,113840.0,113830.0,0.43632684]
[1754216415454,0.6166322,113840.0,113830.0,0.3573812]
[1754216420361,0.6367122,113840.0,113830.0,0.3573812]
[1754216427859,0.2759122,113840.0,113830.0,0.3573812]
[1754216428063,0.6367122,113840.0,113830.0,0.3573812]
[1754216429471,0.2759122,113840.0,113830.0,0.3573812]
[1754216431076,0.2759122,113840.0,113830.0,0.43632684]
[1754216431670,0.2558322,113840.0,113830.0,0.43632684]
[1754216446684,0.2548322,113840.0,113830.0,0.43632684]
[1754216448979,0.2558322,113840.0,113830.0,0.43632684]
[1754216465492,0.2558322,113840.0,113830.0,0.3573812]
[1754216473600,0.2548322,113840.0,113830.0,0.3573812]
[1754216474403,0.2548322,113840.0,113830.0,0.3583812]
[1754216475298,0.2548322,113840.0,113830.0,0.43732684]
[1754216476000,0.2558322,113840.0,113830.0,0.43732684]
[1754216476498,0.2558322,113840.0,113830.0,0.43632684]
[1754216477498,0.2558322,113840.0,113830.0,0.43732684]
[1754216478006,0.2558322,113840.0,113830.0,0.43632684]
[1754216479203,0.2548322,113840.0,113830.0,0.43632684]
[1754216480003,0.2558322,113840.0,113830.0,0.43632684]
[1754216483009,0.2558322,113840.0,113830.0,0.3573812]
[1754216483206,0.2558322,113840.0,113830.0,0.43632684]
[1754216485805,0.2558322,113840.0,113830.0,0.3573812]
[1754216496316,0.1863617,113840.0,113830.0,0.3573812]
[1754216499120,0.1766917,113840.0,113830.0,0.3573812]
[1754216500219,0.001,113840.0,113830.0,0.7181812]
[1754216501833,0.2781382,113850.0,113840.0,0.2233718]
[1754216501834,0.2872282,113850.0,113840.0,0.2233718]
[1754216502031,0.3197482,113850.0,113840.0,0.2929118]
[1754216502433,0.3043782,113850.0,113840.0,0.2929118]
[1754216502830,0.2604566,113850.0,113840.0,0.2929118]
[1754216503633,0.2604566,113850.0,113840.0,0.37185744]
[1754216503833,0.2758266,113850.0,113840.0,0.37185744]
[1754216504735,0.2768266,113850.0,113840.0,0.39218744]
[1754216505434,0.2768266,113850.0,113840.0,0.3132418]
[1754216507834,0.2991366,113850.0,113840.0,0.3132418]
[1754216513140,0.2614566,113850.0,113840.0,0.3132418]
[1754216513934,0.2991366,113850.0,113840.0,0.3132418]
[1754216514336,0.2450666,113850.0,113840.0,0.3132418]
[1754216514536,0.2450666,113850.0,113840.0,0.6740418]
[1754216514537,0.2768266,113850.0,113840.0,0.6740418]
[1754216515139,0.2991366,113850.0,113840.0,0.6740418]
[1754216523541,0.2206066,113850.0,113840.0,0.6740418]
[1754216524345,0.2298166,113850.0,113840.0,0.6740418]
[1754216524543,0.2611566,113850.0,113840.0,0.6740418]
[1754216525446,0.2611566,113850.0,113840.0,0.75298744]
[1754216526848,0.2611566,113850.0,113840.0,0.6740418]
[1754216527745,0.2777366,113850.0,113840.0,0.6740418]
[1754216530050,0.2993566,113850.0,113840.0,0.6740418]
[1754216530348,0.2993566,113850.0,113840.0,0.75298744]
[1754216533251,0.2993566,113850.0,113840.0,0.6740418]
[1754216542257,0.2993566,113850.0,113840.0,0.75298744]
[1754216542959,0.2993566,113850.0,113840.0,0.6740418]
[1754216543558,0.2463966,113850.0,113840.0,0.13755]
[1754216543858,0.6802366,113850.0,113840.0,0.12073]
[1754216544258,0.6802366,113850.0,113840.0,0.13448]
[1754216544860,0.6802366,113850.0,113840.0,0.12073]
[1754216547561,0.6802366,113850.0,113840.0,0.18391671]
[1754216549363,0.6802366,113850.0,113840.0,0.19852671]
[1754216555266,0.6802366,113850.0,113840.0,0.13534]
[1754216564778,0.3194366,113850.0,113840.0,0.13534]
[1754216565081,0.6802366,113850.0,113840.0,0.13534]
[1754216565283,0.6802366,113850.0,113840.0,0.19852671]
[1754216574199,0.6802366,113850.0,113840.0,0.13534]
[1754216574793,0.3194366,113850.0,113840.0,0.13534]
[1754216574999,0.6802366,113850.0,113840.0,0.13534]
[1754216575299,0.6802366,113850.0,113840.0,0.19848394]
[1754216578703,0.6802366,113850.0,113840.0,0.18387394]
[1754216578892,0.6802366,113850.0,113840.0,0.08347394]
[1754216579202,0.2379006,113840.0,113830.0,0.07894564]
[1754216579400,0.42301,113840.0,113820.0,0.10357564]
[1754216579598,0.598716,113830.0,113820.0,0.10357564]
[1754216580402,0.598716,113830.0,113820.0,0.02463]
[1754216581005,0.597716,113830.0,113820.0,0.02463]
[1754216581504,0.598716,113830.0,113820.0,0.02463]
[1754216595812,0.598716,113830.0,113820.0,0.2003515]
[1754216596013,0.598716,113830.0,113820.0,0.2382015]
[1754216596212,0.598716,113830.0,113820.0,0.2796015]
[1754216596913,0.598716,113830.0,113820.0,0.31631562]
[1754216597212,0.598716,113830.0,113820.0,0.36207562]
[1754216603819,0.237916,113830.0,113820.0,0.36207562]
[1754216606621,0.185016,113830.0,113820.0,0.72287562]
[1754216608617,0.215986,113830.0,113820.0,0.72287562]
[1754216614225,0.215986,113830.0,113820.0,0.80182126]
[1754216615424,0.215986,113830.0,113820.0,0.72287562]
[1754216617723,0.239216,113830.0,113820.0,0.72287562]
[1754216619128,0.239216,113830.0,113820.0,0.36207562]
[1754216622727,0.239216,113830.0,113820.0,0.44102126]
[1754216623824,0.600016,113830.0,113820.0,0.26529976]
[1754216624024,0.600016,113830.0,113820.0,0.18635412]
[1754216625324,0.600016,113830.0,113820.0,0.36207552]
[1754216627133,0.600016,113830.0,113820.0,0.18635412]
[1754216627333,0.600016,113830.0,113820.0,0.36207552]
[1754216628332,0.600016,113830.0,113820.0,0.18635412]
[1754216628531,0.600016,113830.0,113820.0,0.17250412]
[1754216628930,0.600016,113830.0,113820.0,0.18739412]
[1754216632429,0.600016,113830.0,113820.0,0.09325412]
[1754216632734,0.600016,113830.0,113820.0,0.16579412]
[1754216633034,0.600016,113830.0,113820.0,0.17546412]
[1754216633233,0.600016,113830.0,113820.0,0.19035412]
[1754216633727,0.600016,113830.0,113820.0,0.26929976]
[1754216637236,0.600016,113830.0,113820.0,0.44502076]
[1754216638036,0.600016,113830.0,113820.0,0.26929976]
[1754216639438,0.600016,113830.0,113820.0,0.19035412]
[1754216639628,0.600016,113830.0,113820.0,0.36607502]
[1754216642336,0.600016,113830.0,113820.0,0.44502066]
[1754216644248,0.600016,113830.0,113820.0,0.36607502]
[1754216655664,0.600016,113830.0,113820.0,0.44502066]
[1754216656765,0.600016,113830.0,113820.0,0.36607502]
[1754216660070,0.239216,113830.0,113820.0,0.36607502]
[1754216660269,0.600016,113830.0,113820.0,0.44502066]
[1754216663171,0.600016,113830.0,113820.0,0.36607502]
[1754216676079,0.600016,113830.0,113820.0,0.44502066]
[1754216685585,0.600016,113830.0,113820.0,0.36607502]
[1754216695293,0.208246,113830.0,113820.0,0.36607502]
[1754216695598,0.185016,113830.0,113820.0,0.80582066]
[1754216703307,0.175706,113830.0,113820.0,0.80582066]
[1754216703704,0.001,113830.0,113820.0,0.80582066]
[1754216706809,0.001,113830.0,113820.0,0.44502066]
[1754216707010,0.001,113830.0,113820.0,0.80582066]
[1754216716315,0.304668,113840.0,113830.0,0.2971354]
[1754216718319,0.305668,113840.0,113830.0,0.2971354]
[1754216718819,0.306668,113840.0,113830.0,0.2971354]
[1754216720620,0.328548,113840.0,113830.0,0.2971354]
[1754216721917,0.327548,113840.0,113830.0,0.2971354]
[1754216722221,0.326548,113840.0,113830.0,0.2971354]
[1754216722418,0.326548,113840.0,113830.0,0.2981354]
[1754216724022,0.327548,113840.0,113830.0,0.2981354]
[1754216725421,0.326548,113840.0,113830.0,0.2981354]
[1754216726217,0.326548,113840.0,113830.0,0.2971354]
[1754216726411,0.327548,113840.0,113830.0,0.2971354]
[1754216726922,0.326548,113840.0,113830.0,0.2971354]
[1754216728022,0.327548,113840.0,113830.0,0.2971354]
[1754216728322,0.328548,113840.0,113830.0,0.2971354]
[1754216729112,0.328598,113840.0,113830.0,0.2971354]
[1754216734831,0.328598,113840.0,113830.0,0.37608104]
[1754216735535,0.328598,113840.0,113830.0,0.2971354]
[1754216750847,0.328598,113840.0,113830.0,0.37608104]
[1754216759651,0.326598,113840.0,113830.0,0.37608104]
[1754216759856,0.326598,113840.0,113830.0,0.73688104]
[1754216760553,0.2289721,113840.0,113830.0,0.73688104]
[1754216760854,0.1850401,113840.0,113830.0,0.6579354]
[1754216761253,0.1850401,113840.0,113830.0,0.7368899]
[1754216761452,0.2161701,113840.0,113830.0,0.7368899]
[1754216763355,0.2374201,113840.0,113830.0,0.7368899]
[1754216774464,0.2374201,113840.0,113830.0,0.3760899]
[1754216774670,0.2374201,113840.0,113830.0,0.7368899]
[1754216775470,0.2374201,113840.0,113830.0,0.6579354]
[1754216776270,0.2374201,113840.0,113830.0,0.7368972]
[1754216776666,0.2374201,113840.0,113830.0,0.6579354]
[1754216782375,0.2374201,113840.0,113830.0,0.73690053]
[1754216785677,0.2374201,113840.0,113830.0,0.6579354]
[1754216789678,0.2374201,113840.0,113830.0,0.2971354]
[1754216789879,0.2374201,113840.0,113830.0,0.6579354]
[1754216802987,0.2374201,113840.0,113830.0,0.2971354]
[1754216803190,0.2374201,113840.0,113830.0,0.6579354]
[1754216803488,0.2374201,113840.0,113830.0,0.73690053]
[1754216806786,0.2374201,113840.0,113830.0,0.37610053]
[1754216807086,0.2374201,113840.0,113830.0,0.73690053]
[1754216808890,0.2374201,113840.0,113830.0,0.37610053]
[1754216809088,0.2374201,113840.0,113830.0,0.73690053]
[1754216809989,0.2374201,113840.0,113830.0,0.37610053]
[1754216810189,0.2374201,113840.0,113830.0,0.73690053]
[1754216811691,0.2374201,113840.0,113830.0,0.6579354]
[1754216813391,0.2161701,113840.0,113830.0,0.6579354]
[1754216821900,0.2161701,113840.0,113830.0,0.73690053]
[1754216825699,0.2161701,113840.0,113830.0,0.6579354]
[1754216826608,0.2161701,113840.0,113830.0,0.73690053]
[1754216826809,0.1850401,113840.0,113830.0,0.73690053]
[1754216828205,0.1850401,113840.0,113830.0,0.6579354]
[1754216829606,0.1850401,113840.0,113830.0,0.73690053]
[1754216832207,0.1850401,113840.0,113830.0,0.6579354]
[1754216833603,0.1990501,113840.0,113830.0,0.6579354]
[1754216833803,0.1990501,113840.0,113830.0,0.2971354]
[1754216833999,0.1990501,113840.0,113830.0,0.6579354]
[1754216835709,0.1990501,113840.0,113830.0,0.73690053]
[1754216842307,0.2162001,113840.0,113830.0,0.73690053]
[1754216849813,0.2162001,113840.0,113830.0,0.37610053]
[1754216850014,0.2162001,113840.0,113830.0,0.73690053]
[1754216850710,0.2162001,113840.0,113830.0,0.37610053]
[1754216851010,0.2162001,113840.0,113830.0,0.73690053]
[1754216861418,0.1850401,113840.0,113830.0,0.73690053]
[1754216861616,0.1756901,113840.0,113830.0,0.73690053]
[1754216868525,0.1756901,113840.0,113830.0,0.6579354]
[1754216882036,0.1756901,113840.0,113830.0,0.2971354]
[1754216882236,0.1756901,113840.0,113830.0,0.6579354]
[1754216882432,0.2167301,113840.0,113830.0,0.6579354]
[1754216882622,0.2382701,113840.0,113830.0,0.6579354]
[1754216885735,0.2382701,113840.0,113830.0,0.73690053]
[1754216886236,0.2167301,113840.0,113830.0,0.73690053]
[1754216894749,0.2167301,113840.0,113830.0,0.37610053]
[1754216895054,0.2167301,113840.0,113830.0,0.73690053]
[1754216896354,0.2167301,113840.0,113830.0,0.6579354]
[1754216898358,0.2167301,113840.0,113830.0,0.2971354]
[1754216898556,0.2167301,113840.0,113830.0,0.6579354]
[1754216899655,0.2167301,113840.0,113830.0,0.73690343]
[1754216899853,0.2167301,113840.0,113830.0,0.6579354]
[1754216900446,0.2167301,113840.0,113830.0,0.73690348]
[1754216908959,0.2167301,113840.0,113830.0,0.37610348]
[1754216909155,0.2167301,113840.0,113830.0,0.73690348]
[1754216910061,0.2167301,113840.0,113830.0,0.37610348]
[1754216915063,0.1856501,113840.0,113830.0,0.37610348]
[1754216915660,0.1856501,113840.0,113830.0,0.2971354]
[1754216917858,0.1856501,113840.0,113830.0,0.6579354]
[1754216918664,0.1756901,113840.0,113830.0,0.6579354]
[1754216925771,0.1756901,113840.0,113830.0,0.73690348]
[1754216929668,0.2019701,113840.0,113830.0,0.73690348]
[1754216929864,0.2167701,113840.0,113830.0,0.73690348]
[1754216953392,0.2167701,113840.0,113830.0,0.37610348]
[1754216953590,0.2167701,113840.0,113830.0,0.73690348]
[1754216954994,0.2167701,113840.0,113830.0,0.37610348]
[1754216955290,0.2167701,113840.0,113830.0,0.73690348]
[1754216955996,0.2167701,113840.0,113830.0,0.37610348]
[1754216956194,0.2167701,113840.0,113830.0,0.73690348]
[1754216959198,0.2167701,113840.0,113830.0,0.6579354]
[1754216960397,0.2167701,113840.0,113830.0,0.73689965]
[1754216963800,0.2167701,113840.0,113830.0,0.37609965]
[1754216964000,0.2167701,113840.0,113830.0,0.73689965]
[1754216965798,0.5974701,113840.0,113830.0,0.12143]
[1754216966504,0.5974701,113840.0,113830.0,0.2971358]
[1754216967200,0.5974701,113840.0,113830.0,0.07307]
[1754216967400,0.5974701,113840.0,113830.0,0.0241]
[1754216967605,0.2370858,113830.0,113820.0,0.43752992]
[1754216967902,0.5978858,113830.0,113820.0,0.53093417]
[1754216968805,0.5978858,113830.0,113820.0,0.53193417]
[1754216970105,0.5978858,113830.0,113820.0,0.45296992]
[1754216971806,0.2370858,113830.0,113820.0,0.45296992]
[1754216972709,0.2370858,113830.0,113820.0,0.81376992]
[1754216976010,0.2370858,113830.0,113820.0,0.89273417]
[1754216981113,0.2370858,113830.0,113820.0,0.81376992]
[1754216984416,0.2370858,113830.0,113820.0,0.8926903]
[1754216984714,0.2370858,113830.0,113820.0,0.81376992]
[1754216985316,0.2370858,113830.0,113820.0,0.89268995]
[1754216987618,0.2160758,113830.0,113820.0,0.89268995]
[1754216995430,0.1852358,113830.0,113820.0,0.89268995]
[1754216995620,0.1757058,113830.0,113820.0,0.89268995]
[1754217002822,0.2171758,113830.0,113820.0,0.89268995]
[1754217006127,0.2171758,113830.0,113820.0,0.81376992]
[1754217006327,0.2171758,113830.0,113820.0,0.89273596]
[1754217007327,0.2171758,113830.0,113820.0,0.81376992]
[1754217008826,0.6001358,113830.0,113820.0,0.25393038]
[1754217009333,0.6001358,113830.0,113820.0,0.26810038]
[1754217010023,0.6001358,113830.0,113820.0,0.42965168]
[1754217010224,0.6001358,113830.0,113820.0,0.09331412]
[1754217010430,0.60877727,113830.0,113820.0,0.09331412]
[1754217010622,0.60877727,113830.0,113820.0,0.001]
[1754217010623,0.78448927,113830.0,113820.0,0.001]
[1754217010827,0.2393668,113810.0,113800.0,0.10315626]
[1754217011026,0.6001668,113810.0,113800.0,0.02419]
[1754217011423,0.2393822,113800.0,113790.0,0.10291]
[1754217011629,0.6001822,113800.0,113790.0,0.11708]
[1754217012232,0.6001822,113800.0,113790.0,0.2928477]
[1754217012435,0.5971822,113800.0,113790.0,0.2928477]
[1754217013636,0.5971822,113800.0,113790.0,0.2958477]
[1754217014138,0.5941822,113800.0,113790.0,0.2958477]
[1754217015437,0.5941822,113800.0,113790.0,0.2978477]
[1754217018951,0.5941822,113800.0,113790.0,0.12208]
[1754217019653,0.5941822,113800.0,113790.0,0.2978477]
[1754217020953,0.5941822,113800.0,113790.0,0.2958477]
[1754217021152,0.5941822,113800.0,113790.0,0.2968477]
[1754217021353,0.5941822,113800.0,113790.0,0.2938477]
[1754217022851,0.5941822,113800.0,113790.0,0.11808]
[1754217036159,0.5941822,113800.0,113790.0,0.10391]
[1754217039869,0.60273946,113800.0,113790.0,0.10391]
[1754217041475,0.5941822,113800.0,113790.0,0.10391]
[1754217041969,0.5941822,113800.0,113790.0,0.11774]
[1754217042162,0.5941822,113800.0,113790.0,0.02519]
[1754217042363,0.5941822,113800.0,113790.0,0.04103]
[1754217042568,0.5941822,113800.0,113790.0,0.07529]
[1754217042774,0.5941822,113800.0,113790.0,0.0982]
[1754217042970,0.5941822,113800.0,113790.0,0.10791]
[1754217043474,0.5941822,113800.0,113790.0,0.12174]
[1754217044274,0.5941822,113800.0,113790.0,0.2975076]
[1754217044576,0.2333822,113800.0,113790.0,0.2975076]
[1754217044763,0.1697522,113800.0,113790.0,0.6583076]
[1754217044963,0.3491879,113810.0,113800.0,0.2242122]
[1754217045275,0.3075579,113810.0,113800.0,0.2966122]
[1754217045671,0.3491879,113810.0,113800.0,0.6574122]
[1754217045873,0.648882,113820.0,113810.0,0.2965967]
[1754217046073,0.687152,113820.0,113810.0,0.2965967]
[1754217046474,0.326352,113820.0,113810.0,0.2965967]
[1754217046777,0.326352,113820.0,113810.0,0.3597524]
[1754217047778,0.273202,113820.0,113810.0,0.7205524]
[1754217048575,0.277202,113820.0,113810.0,0.7205524]
[1754217048873,0.267602,113820.0,113810.0,0.7205524]
[1754217049082,0.267602,113820.0,113810.0,0.6573967]
[1754217049276,0.267602,113820.0,113810.0,0.72047273]
[1754217055680,0.267602,113820.0,113810.0,0.6573967]
[1754217058083,0.2236688,113820.0,113810.0,0.6573967]
[1754217058280,0.1797367,113820.0,113810.0,0.6573967]
[1754217059384,0.004,113820.0,113810.0,0.6573967]
[1754217061185,0.004,113820.0,113810.0,0.73636296]
[1754217061781,0.004,113820.0,113810.0,0.6573967]
[1754217064384,0.1797213,113820.0,113810.0,0.6573967]
[1754217066382,0.1797213,113820.0,113810.0,0.9210967]
[1754217067589,0.1797213,113820.0,113810.0,1.00006296]
[1754217068390,0.1797213,113820.0,113810.0,0.9210967]
[1754217069888,0.1797213,113820.0,113810.0,1.2818967]
[1754217070692,0.1797213,113820.0,113810.0,0.5602967]
[1754217070893,0.1797213,113820.0,113810.0,1.2818967]
[1754217072396,0.1797213,113820.0,113810.0,1.36086296]
[1754217074595,0.004,113820.0,113810.0,1.36086296]
[1754217075796,0.004,113820.0,113810.0,1.2818967]
[1754217076703,0.1756924,113840.0,113830.0,0.4265328]
[1754217076994,0.1852524,113840.0,113830.0,0.86618054]
[1754217077194,0.2161124,113840.0,113830.0,0.86618054]
[1754217078096,0.2211124,113840.0,113830.0,0.86618054]
[1754217078298,0.2241124,113840.0,113830.0,0.86618054]
[1754217078793,0.2231124,113840.0,113830.0,0.86618054]
[1754217079296,0.04742,113840.0,113830.0,0.86618054]
[1754217079892,0.04442,113840.0,113830.0,0.86618054]
[1754217080097,0.04642,113840.0,113830.0,0.86618054]
[1754217081500,0.04642,113840.0,113830.0,0.93612101]
[1754217082199,0.006,113840.0,113830.0,0.93612101]
[1754217083297,0.006,113840.0,113830.0,1.29692101]
[1754217085696,0.006,113840.0,113830.0,1.35996025]
[1754217085891,0.006,113840.0,113830.0,1.28111251]
[1754217086097,0.006,113840.0,113830.0,1.21807327]
[1754217086397,0.006,113840.0,113830.0,1.28111306]
[1754217087198,0.006,113840.0,113830.0,1.21807327]
[1754217087400,0.006,113840.0,113830.0,1.28111513]
[1754217088198,0.006,113840.0,113830.0,1.21807327]
[1754217090997,0.003,113840.0,113830.0,1.21807327]
[1754217092202,0.001,113840.0,113830.0,1.21807327]
[1754217092405,0.002,113840.0,113830.0,1.21807327]
[1754217094907,0.1776905,113840.0,113830.0,1.21807327]
[1754217096002,0.1776905,113840.0,113830.0,1.29692101]
[1754217102212,0.1776905,113840.0,113830.0,1.21807327]
[1754217102711,0.1776905,113840.0,113830.0,1.29689423]
[1754217103512,0.1776905,113840.0,113830.0,1.21807327]
[1754217103812,0.1776904,113840.0,113830.0,1.21807327]
[1754217104013,0.002,113840.0,113830.0,1.21807327]
[1754217106514,0.1776904,113840.0,113830.0,1.21807327]
[1754217107314,0.1776904,113840.0,113830.0,0.49647327]
[1754217107516,0.1776904,113840.0,113830.0,1.21807327]
[1754217108923,0.002,113840.0,113830.0,1.21807327]
[1754217109414,0.002,113840.0,113830.0,0.49647327]
[1754217109618,0.002,113840.0,113830.0,1.21807327]
[1754217111418,0.002,113840.0,113830.0,0.49647327]
[1754217111621,0.002,113840.0,113830.0,1.21807327]
[1754217117722,0.002,113840.0,113830.0,0.49647327]
[1754217118022,0.002,113840.0,113830.0,1.21807327]
[1754217118222,0.1776905,113840.0,113830.0,1.21807327]
[1754217118822,0.002,113840.0,113830.0,1.21807327]
[1754217120922,0.002,113840.0,113830.0,0.49647327]
[1754217121125,0.002,113840.0,113830.0,1.21807327]
[1754217121622,0.1776905,113840.0,113830.0,1.21807327]
[1754217122423,0.1776905,113840.0,113830.0,1.32894176]
[1754217123826,0.002,113840.0,113830.0,1.32894176]
[1754217128527,0.002,113840.0,113830.0,1.21807327]
[1754217130929,0.002,113840.0,113830.0,0.49647327]
[1754217131230,0.002,113840.0,113830.0,1.21807327]
[1754217133930,0.002,113840.0,113830.0,1.32894176]
[1754217135730,0.0006,113840.0,113830.0,1.32894176]
[1754217138634,0.0006,113840.0,113830.0,1.21807327]
[1754217140334,0.0006,113840.0,113830.0,1.32894176]
[1754217140632,0.0006,113840.0,113830.0,1.21807327]
[1754217141835,0.0006,113840.0,113830.0,0.49647327]
[1754217142033,0.0006,113840.0,113830.0,1.21807327]
[1754217145036,0.0006,113840.0,113830.0,0.49647327]
[1754217145237,0.0006,113840.0,113830.0,1.2970208]
[1754217145831,0.0006,113840.0,113830.0,1.21807327]
[1754217146033,0.0006,113840.0,113830.0,1.32894176]
[1754217146633,0.0006,113840.0,113830.0,0.49647327]
[1754217146838,0.0006,113840.0,113830.0,1.21807327]
[1754217149636,0.0006,113840.0,113830.0,0.49647327]
[1754217149840,0.0006,113840.0,113830.0,1.21807327]
[1754217158349,0.0006,113840.0,113830.0,1.2970196]
[1754217161050,0.0006,113840.0,113830.0,0.5754196]
[1754217161250,0.0006,113840.0,113830.0,1.2970196]
[1754217163852,0.0006,113840.0,113830.0,1.21807327]
[1754217164052,0.0006,113840.0,113830.0,0.49647327]
[1754217164249,0.0006,113840.0,113830.0,1.21807327]
[1754217167255,0.0006,113840.0,113830.0,1.32894176]
[1754217168857,0.0006,113840.0,113830.0,1.21807327]
[1754217172961,0.0006,113840.0,113830.0,0.49647327]
[1754217173262,0.0006,113840.0,113830.0,1.21807327]
[1754217175362,0.0006,113840.0,113830.0,1.29701988]
[1754217176662,0.0006,113840.0,113830.0,0.57541988]
[1754217176862,0.0006,113840.0,113830.0,0.93621988]
[1754217185971,0.0006,113840.0,113830.0,0.85727327]
[1754217196674,0.043915,113860.0,113850.0,0.0604]
[1754217196878,0.2195799,113860.0,113850.0,0.651675]
[1754217197172,0.2295099,113860.0,113850.0,0.651675]
[1754217197475,0.2166149,113860.0,113850.0,0.651675]
[1754217198277,0.2196149,113860.0,113850.0,0.651675]
[1754217198477,0.2226149,113860.0,113850.0,0.651675]
[1754217199678,0.2226149,113860.0,113850.0,0.66041452]
[1754217207885,0.2226149,113860.0,113850.0,0.73936094]
[1754217216389,0.2226149,113860.0,113850.0,0.66041452]
[1754217223998,0.2226149,113860.0,113850.0,0.29961452]
[1754217224293,0.2226149,113860.0,113850.0,0.66041452]
[1754217225990,0.2226149,113860.0,113850.0,0.7235553]
[1754217226194,0.2226149,113860.0,113850.0,0.66041452]
[1754217227798,0.2226149,113860.0,113850.0,0.73936094]
[1754217229395,0.2226149,113860.0,113850.0,0.66041452]
[1754217229801,0.2226149,113860.0,113850.0,0.73936094]
[1754217231786,0.2054649,113860.0,113850.0,0.73936094]
[1754217232396,0.2054649,113860.0,113850.0,0.66041452]
[1754217232698,0.1915949,113860.0,113850.0,0.66041452]
[1754217233498,0.1816649,113860.0,113850.0,0.66041452]
[1754217233797,0.1816596,113860.0,113850.0,0.66041452]
[1754217234297,0.006,113860.0,113850.0,0.66041452]
[1754217235399,0.5803559,113870.0,113860.0,0.2242596]
[1754217235699,0.5803559,113870.0,113860.0,0.2972696]
[1754217236094,0.5894159,113870.0,113860.0,0.2972696]
[1754217236294,0.6209859,113870.0,113860.0,0.2972696]
[1754217236495,0.6259859,113870.0,113860.0,0.2972696]
[1754217237505,0.6289859,113870.0,113860.0,0.2972696]
[1754217241406,0.5850748,113870.0,113860.0,0.2972696]
[1754217242502,0.1836448,113870.0,113860.0,0.2972696]
[1754217243005,0.1806448,113870.0,113860.0,0.2972696]
[1754217243206,0.2214748,113870.0,113860.0,0.2972696]
[1754217244106,0.2184748,113870.0,113860.0,0.2972696]
[1754217244406,0.2204748,113870.0,113860.0,0.2972696]
[1754217244801,0.1796448,113870.0,113860.0,0.2972696]
[1754217247510,0.1796441,113870.0,113860.0,0.6580696]
[1754217247713,0.1776441,113870.0,113860.0,0.6580696]
[1754217247906,0.003,113870.0,113860.0,0.9217696]
[1754217248411,0.003,113870.0,113860.0,1.00071602]
[1754217248610,0.56592243,113890.0,113880.0,0.2234987]
[1754217248813,0.56592243,113890.0,113880.0,0.35865975]
[1754217249311,0.65498243,113890.0,113880.0,0.34410975]
[1754217249501,0.65498243,113890.0,113880.0,0.35865975]
[1754217250107,0.64538243,113890.0,113880.0,0.35865975]
[1754217251014,0.61075243,113890.0,113880.0,0.35865975]
[1754217251314,0.64938243,113890.0,113880.0,0.35865975]
[1754217251706,0.64838243,113890.0,113880.0,0.35865975]
[1754217253110,0.65138243,113890.0,113880.0,0.35865975]
[1754217253310,0.65138243,113890.0,113880.0,0.2955987]
[1754217253914,0.64838243,113890.0,113880.0,0.2955987]
[1754217254114,0.65038243,113890.0,113880.0,0.35865975]
[1754217254413,0.65038243,113890.0,113880.0,0.2955987]
[1754217254713,0.65038243,113890.0,113880.0,0.35865975]
[1754217256109,0.3478887,113890.0,113880.0,0.35865975]
[1754217256506,0.2368033,113890.0,113880.0,0.35865975]
[1754217256811,0.2600733,113890.0,113880.0,0.35865975]
[1754217258610,0.2600733,113890.0,113880.0,0.2955987]
[1754217261914,0.2600733,113890.0,113880.0,0.35865975]
[1754217266018,0.2600733,113890.0,113880.0,0.2955987]
[1754217270614,0.2590733,113890.0,113880.0,0.2955987]
[1754217271109,0.2570733,113890.0,113880.0,0.2955987]
[1754217272018,0.2560733,113890.0,113880.0,0.2955987]
[1754217272322,0.2570733,113890.0,113880.0,0.2955987]
[1754217274325,0.2570733,113890.0,113880.0,0.35865975]
[1754217274721,0.2570733,113890.0,113880.0,0.6563987]
[1754217275022,0.2570733,113890.0,113880.0,0.71945975]
[1754217276326,0.2570733,113890.0,113880.0,0.6563987]
[1754217277831,0.2570733,113890.0,113880.0,0.73534512]
[1754217281726,0.2570733,113890.0,113880.0,0.6563987]
[1754217283833,0.2570733,113890.0,113880.0,0.71949012]
[1754217288028,0.1873833,113890.0,113880.0,0.71949012]
[1754217288536,0.2183233,113890.0,113880.0,0.71949012]
[1754217289037,0.1873833,113890.0,113880.0,0.71949012]
[1754217290037,0.2184233,113890.0,113880.0,0.71949012]
[1754217290244,0.2337833,113890.0,113880.0,0.71949012]
[1754217290538,0.2554233,113890.0,113880.0,0.73534512]
[1754217291040,0.2554233,113890.0,113880.0,0.6563987]
[1754217291338,0.01187,113890.0,113880.0,0.6563987]
[1754217291534,0.01187,113890.0,113880.0,0.73534512]
[1754217292038,0.04281,113890.0,113880.0,0.73534512]
[1754217293139,0.002,113890.0,113880.0,0.73534512]
[1754217293837,0.01187,113890.0,113880.0,0.73534512]
[1754217294141,0.002,113890.0,113880.0,0.99904512]
[1754217297745,0.002,113890.0,113880.0,0.9200987]
[1754217298944,0.002,113890.0,113880.0,0.99891474]
[1754217304746,0.002,113890.0,113880.0,0.9200987]
[1754217307152,0.001,113890.0,113880.0,0.9200987]
[1754217307344,0.003,113890.0,113880.0,0.9200987]
[1754217309149,0.001,113890.0,113880.0,0.9200987]
[1754217309349,0.004,113890.0,113880.0,0.9200987]
[1754217314556,0.004,113890.0,113880.0,0.99891474]